Cogmind - Beta 14 @@@ ROGUE MODE // 2024.09.09 @ 15:34:55 Player: Plexion Result: Destroyed by XM-G4C(R) with Subdweller Beam Cannon Performance ------------- Evolutions (0) 0 Regions Visited (3) 600 Robots Destroyed (47) 235 Value Destroyed (933) 933 Prototype IDs (0) 0 Alien Tech Used (0) 0 Bonus (58) 58 TOTAL SCORE: 1826 Bonus ------- Follower Combat Kills 58 Cogmind --------- Core Integrity 0/250 Matter 175/300 Energy 11/100 System Corruption 0% Temperature Cool (9) Movement Treading (160) Location -10/Subcaves Parts ------- > --- POWER (1) -------- (None) > --- PROPULSION (2) --- Light Treads Spiked Treads > --- UTILITY (2) ------ Large Storage Unit Shield Generator > --- WEAPON (2) ------- Subdweller Beam Cannon Subdweller Beam Cannon > --- INVENTORY (15) --- Subdweller Power Source Light Treads Spiked Treads Compact Wheel Humpback Seismic Detector Subdweller Beam Cannon Autogun Grenade Launcher Grenade Launcher Mace Shrapnel Trap Peak State ------------ > --- POWER ------------ Ion Engine > --- PROPULSION ------- Light Treads Spiked Treads > --- UTILITY ---------- Large Storage Unit Shield Generator > --- WEAPON ----------- Autogun Mace > --- INVENTORY -------- Ion Engine Light Treads Light Treads Light Treads Spiked Treads Compact Wheel Seismic Detector Shield Generator Subdweller Beam Cannon Autogun Autogun Autogun Battle Rifle Grenade Launcher Grenade Launcher [Rating: 13] Favorites ----------- Power Ion Engine Engine Ion Engine Propulsion Light Treads Treads Light Treads Wheel Compact Wheel Utility Large Storage Unit Device Seismic Detector Storage Large Storage Unit Weapon Autogun Energy Gun Small Laser Energy Cannon Subdweller Beam Cannon Ballistic Gun Autogun Launcher Grenade Launcher Impact Weapon Mace Build | -11 -10 -10 -10 ------- Run | Yrd Mat Min Sub Slots Evolved . | . . . . Power . | . . . . Propulsion . | . . . . Utility . | . . . . Weapon . | . . . . Parts Attached 89 | 7 20 10 52 Power 2 | 1 . . 1 Engine 2 | 1 . . 1 Core . | . . . . Reactor . | . . . . Propulsion 10 | 2 2 2 4 Treads 8 | 2 . 2 4 Leg . | . . . . Wheel 2 | . 2 . . Hover . | . . . . Flight . | . . . . Utility 37 | 2 11 2 22 Device 34 | 1 9 2 22 Storage 3 | 1 2 . . Processor . | . . . . Hackware . | . . . . Protection . | . . . . Artifact . | . . . . Weapon 40 | 2 7 6 25 Energy Gun 2 | 1 1 . . Energy Cannon 10 | . . . 10 Ballistic Gun 11 | 1 3 2 5 Ballistic Cannon . | . . . . Launcher 3 | . 2 1 . Special Weapon . | . . . . Impact Weapon 14 | . 1 3 10 Slashing Weapon . | . . . . Piercing Weapon . | . . . . Special Melee Weapon . | . . . . Unidentified Prototypes . | . . . . Parts Lost 4 | . . . 4 Power 2 | . . . 2 Propulsion 1 | . . . 1 Utility . | . . . . Weapon 1 | . . . 1 Highest Loss Streak 3 | . . . 3 To Critical Strikes . | . . . . Average Slot Usage (%) 99 | . 99 100 99 Engine 13 | . 14 14 13 Treads 27 | . 27 27 28 Device 13 | . 13 14 14 Storage 14 | . 14 14 14 Energy Gun 1 | . 5 . . Energy Cannon 2 | . . . 3 Ballistic Gun 18 | . 20 24 16 Impact Weapon 5 | . 1 2 7 Peak Build Rating 13 | 7 11 11 13 Average Rating 10 | 5 9 9 11 On Entrance 6 | . 7 10 10 Naked Turns . | . . . . Heaviest Build 42 | 14 33 32 42 Greatest Support 40 | 40 40 40 40 Greatest Overweight (x) 1 | . 1 . 1 Average Overweight (x) . | . . . . Largest Inventory Capacity 15 | 8 15 15 15 Average Capacity 13 | 7 10 15 15 Most Carried 15 | 4 13 13 15 Average Carried 12 | 2 7 13 14 Final Capacity 15 | 8 15 15 15 Final Carried 13 | 4 13 13 13 Class Distribution -------------------- 100% | Mutant Dominant Class ---------------- Mutant | -10/Materials Mutant | -10/Mines Mutant | -10/Subcaves Resources | -11 -10 -10 -10 ----------- Run | Yrd Mat Min Sub Matter Collected 1548 | 276 457 130 685 Remotely . | . . . . Salvage Created 1317 | 46 675 84 512 Parts 102 | 6 55 12 29 Haulers Intercepted 1 | . 1 . . Recyclers Shooed 2 | . 2 . . Parts Field Recycled . | . . . . Retrieved Matter . | . . . . Parts Self-Destructed 26 | . . . 26 Prevented . | . . . . Kills | -11 -10 -10 -10 ------- Run | Yrd Mat Min Sub Combat Hostiles Destroyed 33 | . 14 7 12 Melee 1 | . . 1 . Guns 22 | . 12 3 7 Cannons 4 | . . . 4 AOE 5 | . 2 3 . Classes Destroyed 13 | 1 7 2 3 Worker 2 | . . 2 . Builder 2 | . 2 . . Tunneler 2 | 2 . . . Hauler 1 | . 1 . . Recycler 2 | . 2 . . Operator 1 | . 1 . . Turret 2 | . . . 2 Watcher 3 | . 3 . . Swarmer 16 | . 8 6 2 Grunt 6 | . 6 . . Sentry 1 | . . . 1 Subdweller 9 | . . . 9 Assembled 1 | . . 1 . Best Kill Streak 5 | 2 5 3 2 Combat Bots Only 3 | . 3 3 2 Max Kills in Single Turn 3 | 1 3 2 1 Gunslinging 1 | . 1 . . Exploded 2 | . 2 2 . Melee 1 | . . 1 . Uniques/NPCs Destroyed . | . . . . Combat | -11 -10 -10 -10 -------- Run | Yrd Mat Min Sub Hostile Shots Fired 193 | . 55 14 124 Missed 71 | . 16 3 52 Damage Taken 1364 | . 311 114 939 Core 267 | . 66 20 181 Absorbed by Shields 268 | . 41 5 222 Regen/Repaired (Parts) 14 | . 14 . . Core Remaining (%) 100 | 100 . . . Volleys Fired 102 | 2 47 9 44 Largest 2 | 2 2 2 2 Hottest 160 | 60 60 46 160 Shots Fired 194 | 4 91 16 83 Gun 167 | 4 88 14 61 Cannon 22 | . . . 22 Launcher 5 | . 3 2 . Special . | . . . . Kinetic 145 | 2 68 14 61 Thermal 44 | 2 20 . 22 Explosive 5 | . 3 2 . Electromagnetic . | . . . . Robot Hit Streak 20 | 3 10 6 20 Robot Miss Streak 3 | . 3 1 2 Penetration Max . | . . . . Secondary Targets 1 | . 1 . . Max Gunslinging Chain 1 | . 1 . . Shots Hit Robots 132 | 3 49 12 68 Core Hits 64 | 2 32 9 21 Critical Kills 3 | . 1 1 1 Critical Parts Destroyed . | . . . . Critical Strikes 3 | . 1 1 1 Meltdown 1 | . . . 1 Destroy 1 | . 1 . . Smash 1 | . . 1 . Melee Attacks 39 | . 1 8 30 Impact 39 | . 1 8 30 Slashing . | . . . . Piercing . | . . . . Sneak Attacks . | . . . . Combat Hostiles . | . . . . Follow-up Attacks . | . . . . Damage Inflicted 2598 | 35 904 411 1248 Guns 1591 | 35 634 163 759 Cannons 489 | . . . 489 Explosions 434 | . 266 168 . Melee 80 | . . 80 . Ramming 4 | . 4 . . Kinetic 1459 | 13 524 163 759 Thermal 621 | 22 110 . 489 Explosive 434 | . 266 168 . Electromagnetic . | . . . . Impact 80 | . . 80 . Slashing . | . . . . Piercing . | . . . . Highest Corruption . | . . . . Average Corruption . | . . . . Corruption Purged . | . . . . Corruption Blocked . | . . . . Overload Shots . | . . . . Overflow Damage 17 | . 10 7 . Projectiles . | . . . . Explosions 17 | . 10 7 . Melee . | . . . . Knockbacks . | . . . . Impact . | . . . . Kinetic . | . . . . Secondary . | . . . . Self-Inflicted Damage 16 | . . 16 . Shots 2 | . . 2 . Rammed 1 | . 1 . . Targets Rammed 1 | . 1 . . Kicked . | . . . . Crushed . | . . . . Highest Temperature 168 | . 48 12 168 Average Temperature 28 | . 15 5 54 Received Heat Transfer 297 | . 48 . 249 Siege Activations . | . . . . Robots Corrupted . | . . . . Combat Hostiles . | . . . . Parts Fried . | . . . . Impact Corruptions . | . . . . Robots Melted 1 | . . . 1 Combat Hostiles 1 | . . . 1 Parts Melted 3 | . . . 3 Heat Transferred 966 | 50 250 . 666 Parts Sabotaged . | . . . . Parts Stolen . | . . . . Parts Stripped . | . . . . Power Chain Reactions . | . . . . Alert | -11 -10 -10 -10 ------- Run | Yrd Mat Min Sub Peak Influence 294 | 10 294 209 . Initial 49 | . 6 49 . Average 128 | 2 133 152 . Maximum Alert Level 1 | . 1 1 . Low Security (%) 83 | 100 84 76 . Level 1 16 | . 15 23 . Level 2 . | . . . . Level 3 . | . . . . Level 4 . | . . . . Level 5 . | . . . . High Security . | . . . . Max Security . | . . . . Squads Dispatched 3 | . 3 . . Investigation 2 | . 2 . . Extermination . | . . . . Reinforcement 1 | . 1 . . Assault . | . . . . Garrison . | . . . . Intercept . | . . . . Searches Triggered . | . . . . Construction Impeded . | . . . . Haulers Reinforced . | . . . . Active Scanning Responses . | . . . . Cargo Convoy Interrupts . | . . . . Stealth | -11 -10 -10 -10 --------- Run | Yrd Mat Min Sub Distress Signals 4 | . 3 1 . Communications Jammed . | . . . . Distress Signals . | . . . . Times Spotted 55 | . 28 7 20 Peak Tracking Total 5 | . 5 3 2 Tactical Retreats 5 | . 2 1 2 Traps | -11 -10 -10 -10 ------- Run | Yrd Mat Min Sub Traps Triggered 1 | . 1 . . Indirectly . | . . . . Trap Hack Attempts . | . . . . Triggered . | . . . . Disarmed . | . . . . Reprogrammed . | . . . . Reused . | . . . . Traps Extracted . | . . . . Installed . | . . . . Triggered . | . . . . Most Traps Carried 1 | . . . 1 Machines | -11 -10 -10 -10 ---------- Run | Yrd Mat Min Sub Machines Disabled 1 | . . . 1 Max in Single Turn 1 | . . . 1 Machines Repaired . | . . . . Machines Dismantled . | . . . . Machines Sabotaged . | . . . . Overloaded Fab Kills . | . . . . Hacking | -11 -10 -10 -10 --------- Run | Yrd Mat Min Sub Machines Accessed 9 | . 7 . 2 Terminals 5 | . 5 . . Fabricators . | . . . . Repair Stations 1 | . 1 . . Recycling Units 1 | . 1 . . Scanalyzers . | . . . . Garrison Access . | . . . . Total Hacks 22 | . 16 . 6 Successful 18 | . 12 . 6 Failed 4 | . 4 . . Catastrophic . | . . . . Database Lockouts . | . . . . Manual 14 | . 14 . . Terminals 13 | . 13 . . Fabricators . | . . . . Repair Stations 2 | . 2 . . Recycling Units 1 | . 1 . . Scanalyzers . | . . . . Garrison Access . | . . . . Terminal Hacks 9 | . 3 . 6 Record 5 | . . . 5 Robot Analysis 2 | . 2 . . Open Door 1 | . . . 1 Locate Traps 1 | . 1 . . Fabricator Hacks . | . . . . Repair Station Hacks 2 | . 2 . . Scan Component 1 | . 1 . . Repair 1 | . 1 . . Recycling Unit Hacks . | . . . . Scanalyzer . | . . . . Garrison Access Hacks . | . . . . Unauthorized Hacks 7 | . 7 . . Terminals 6 | . 6 . . Botnet 1 | . 1 . . Skim 5 | . 5 . . Fabricators . | . . . . Repair Stations . | . . . . Recycling Units 1 | . 1 . . Tunnel 1 | . 1 . . Scanalyzers . | . . . . Garrison Access . | . . . . Data Cores Recovered . | . . . . Used . | . . . . Hacking Detections 6 | . 6 . . Full Trace Events . | . . . . Feedback Events . | . . . . Feedback Blocked . | . . . . Robot Schematics Acquired . | . . . . Robots Built . | . . . . Authchips . | . . . . Time . | . . . . Total Robot Build Rating . | . . . . Part Schematics Acquired . | . . . . Parts Built . | . . . . Authchips . | . . . . Time . | . . . . Total Part Build Rating . | . . . . Parts Repaired 1 | . 1 . . Time 26 | . 26 . . Parts Recycled . | . . . . Recycled Matter . | . . . . Retrieved Matter . | . . . . Retrieved Components . | . . . . Parts Scanalyzed . | . . . . Part Schematics Acquired . | . . . . Parts Damaged . | . . . . Bothacking | -11 -10 -10 -10 ------------ Run | Yrd Mat Min Sub Used RIF Installer . | . . . . Robots Hacked . | . . . . Non-combat . | . . . . Combat . | . . . . Robot Hacks Applied . | . . . . Relay Couplers Released . | . . . . Fabnet Peak Effective % . | . . . . Robots Rewired . | . . . . Allies Hacked . | . . . . Hacks Repelled . | . . . . Allies | -11 -10 -10 -10 -------- Run | Yrd Mat Min Sub Total Allies 1 | . . 1 . Largest Group 1 | . . 1 1 Highest-Rated Group 31 | . . 31 31 Highest-Rated Ally 31 | . . 31 31 Total Orders . | . . . . Ally Attacks 2 | . . . 2 Total Damage 40 | . . . 40 Kills 2 | . . . 2 Allies Corrupted . | . . . . Allies Melted . | . . . . Intel | -11 -10 -10 -10 ------- Run | Yrd Mat Min Sub Robot Analysis Total 2 | . 2 . . Derelict Logs Recovered 1 | . . . 1 Drone Launches . | . . . . Drone Recoveries . | . . . . Exploration | -11 -10 -10 -10 ------------- Run | Yrd Mat Min Sub Turns Passed 4967 | 131 1327 405 3104 Spaces Moved 2548 | 73 572 215 1688 Core 5 | 5 . . . Treads 2523 | 68 552 215 1688 Legs . | . . . . Wheels 20 | . 20 . . Hover . | . . . . Flight . | . . . . Fastest Speed 50 | 50 105 160 160 Average Speed 159 | 152 158 160 160 Slowest Speed 250 | 160 160 160 250 Overloaded Moves . | . . . . Propulsion Burnouts . | . . . . Robots Hopped . | . . . . Cave-ins Triggered . | . . . . Exploration Rate (%) 60 | 6 83 61 91 Regions Visited 3 Branch Regions 2 Pre-discovered Areas 5 | . 3 . 2 Known Exits Taken 1 | . . 1 . Unknown Exits Taken 2 | 1 1 . . Scrap Searched 1 | . . 1 . Spaces Dug 11 | . 4 . 7 Terrain Destroyed 45 | . 20 17 8 Melee 8 | . 1 . 7 Projectile 1 | . . . 1 AOE 36 | . 19 17 . Terrain Rammed . | . . . . Walls Destroyed . | . . . . Machines Disabled . | . . . . Actions | -11 -10 -10 -10 --------- Run | Yrd Mat Min Sub Total 3182 | 85 905 244 1948 Wait 365 | . 249 3 113 Move 2545 | 72 571 214 1688 Hop . | . . . . Pick Up 24 | 4 10 . 10 Fast Attach 9 | 7 2 . . Attach 4 | . . . 4 Detach 1 | . 1 . . Swap 76 | . 18 10 48 Drop 16 | . 5 . 11 Fire 102 | 2 47 9 44 Melee 39 | . 1 8 30 Ram . | . . . . Kick . | . . . . Crush 1 | . 1 . . Escape Stasis . | . . . . Rewire . | . . . . Trap . | . . . . Miscellaneous . | . . . . Route ------- -11/Scrapyard -10/Materials (discovered 6 exits: [*Mat x3] / [*Min x2] / Sub) -10/Mines (discovered 2 exits: [*Mat] / *Sub) -10/Subcaves (discovered 3 exits: *Mat x2 / *Rec) History --------- Turn | Location | Event 12 | -11/Scrapyard | Discovered new exit (range 14) 132 | -11/Scrapyard | Entered Materials 304 | -10/Materials | Build established: Mutant 637 | -10/Materials | Discovered new exit (range 8) 732 | -10/Materials | Derelicts attacked the area 736 | -10/Materials | Repaired Seismic Detector 766 | -10/Materials | Discovered new exit (range 3) 806 | -10/Materials | Discovered new exit (range 6) 1026 | -10/Materials | Discovered new exit (range 16) 1246 | -10/Materials | Discovered new exit (range 12) 1277 | -10/Materials | Learned 2 Mines zone layouts 1323 | -10/Materials | Learned 4 Recycling zone layouts 1357 | -10/Materials | Identified exit to Subcaves 1414 | -10/Materials | Learned Storage stockpile data 1446 | -10/Materials | Learned location of Subcaves (-10) 1459 | -10/Materials | Entered Mines 1609 | -10/Mines | Excavation squad dispatched 1609 | -10/Mines | A large section of the Mines collapsed 1749 | -10/Mines | Discovered new exit (range 15) 1794 | -10/Mines | Received a Mining Laser from a helpful Derelict 1864 | -10/Mines | Entered Subcaves 1864 | -10/Subcaves | Accompanied by 1 ally 1865 | -10/Subcaves | Identified exit to Recycling 2001 | -10/Subcaves | Discovered new exit (range 16) 2100 | -10/Subcaves | Learned Materials stockpile data 2195 | -10/Subcaves | Shifting Twisted Machinery released Sub. Beam Cannon 2196 | -10/Subcaves | Shifting Twisted Machinery released Piercing Trap 2562 | -10/Subcaves | A swath of the cavern ceiling suddenly collapsed 2913 | -10/Subcaves | Learned location of Zion (-7) 2913 | -10/Subcaves | Met a Zionite searching for "candidates" 2916 | -10/Subcaves | Shifting Twisted Machinery released Spk. Treads 2917 | -10/Subcaves | Shifting Twisted Machinery released Flamer 2988 | -10/Subcaves | Ambushed by Subdwellers from Twisted Machinery 3230 | -10/Subcaves | A swath of the cavern ceiling suddenly collapsed 3336 | -10/Subcaves | Core integrity fell below 50% 3394 | -10/Subcaves | Shifting Twisted Machinery released Flamer 3408 | -10/Subcaves | Shifting Twisted Machinery released Sub. Laser 4567 | -10/Subcaves | Visited Clippyterm 4571 | -10/Subcaves | Identified exit to Materials 4571 | -10/Subcaves | Learned location of Section 7 (-2) 4938 | -10/Subcaves | A Subdweller sparked back to life 4938 | -10/Subcaves | A Subdweller sparked back to life 4961 | -10/Subcaves | Core integrity fell below 20% 4968 | -10/Subcaves | Destroyed by XM-G4C(R) with Subdweller Beam Cannon Last Messages --------------- then I'd have to kill you. >>Record "LU-1G1" It looks like you're researching the legendary digger of dangerously deep tunnels, unfortunately it seems not even members of the Boring Crew know what became of that one. 04650_ Dropped Battle Rifle. 04650_ Acquired Shrapnel Trap. 04666_ Acquired 55 matter. 04687_ DD-R7Y(R) destroyed. 04692_ Acquired 54 matter. 04843_ 8I-NAF(R): "LEAVESUB!" 04843_ 8I-NAF(R) destroyed. 04844_ Extracted 12 energy. 04846_ Acquired 35 matter. 04938_ 93-MKI(R) creaks and sparks as it begins to move. 04938_ XM-G4C(R) creaks and sparks as it begins to move. 04957_ Sub. Beam Cannon shoots sparks and powers down. 04964_ Autogun destroyed. 04966_ Lgt. Treads destroyed. 04968_ Ion Engine destroyed. Map ----- +----------------------------------------------------+ | ?????????????????????????????# ## ###### | | #?????????????????????????????## ## ### # | | #?????????????????????????????# ### ## | | ###???????????????????????????### ## &#! # | | ###??? #???????????????????### #####=&= [ ### | | ## #????????????????###?# #??# &&[ #?? | | #?????????????????# ### ##?## ! ##?? | | # ####???###???????????# #####??# ##??? | | # #??????# ##????????### ##?????# ###???? | | [ #??????# #?????#### # ####### ##?#### | | #?????## #???### ## ### | | ###??## ##### ## | | #### = """# ## | | # &""""## " ## | | ## ###"#"####"" ### #### ### | | #####?#####??##""#?## ##??## #?? | | ### ###???????????#""#??####????## ##? | | #?# #???????????" #???????????# #? | | ### ##?## ##???????????# #???????????# #? | | #?####???## #?#######????# ???????????# #? | | #?????????# #?# ## ###??### ???????????## #? | | #???#####?# ##?# #?????#????????????# #? | | ##### ### #??# ###????????????????# ## | | ## #####?## ##????????????#### # | | #?# #???# ## #????????????# | | ### #??### ### @ #????????????# | | #????## ## R;##????????????# | | #????# ### R##???? # # ## | | ## ###### ### "## & ???## | | #### ## #??????????# | | ##??# # #" " #?????????## | | ##??## ## "" #??????????# ## | | #???##### ""#??????????## #? | | #???????# ## " #???????????# #? | | #???????## #### ##### #??????????# ##? | | ##????????# #??# #???? #?????????#####?? | | #?????????## #??# #????? ???????????????? | | #??????????### ##?? ??????????????????????? | | ##????????????# ##??? ??????????????????????? | | ??????????????## ##????## ??????????????????????? | | ???????????????###???????##??????????????????????? | | ?????????????????????????????????????????????????? | | ?????????????????????????????????????????????????? | | ?????????????????????????????????????????????????? | | ?????????????????????????????????????????????????? | | ?????????????????????????????????????????????????? | | ?????????????????????????????????????????????????? | | ?????????????????????????????????????????????????? | | ?????????????????????????????????????????????????? | | ?????????????????????????????????????????????????? | +----------------------------------------------------+ Best States ------------- Heat Dissipation 25 Energy Generation 10 Energy Capacity 250 Matter Stores 300 Matter Capacity 300 Sight Range 16 Terrain Scan Density 10 Evasion (%) 40 Recoil Reduction 2 Item Schematics ----------------- None Robot Schematics ------------------ None Fabricated ------------ Nothing Alien Tech Used ----------------- None Achievements -------------- None Challenges ------------ None Game ------ Seed HelicalSmallMallet Manual? 0 Play Time 00:25:31 Cumulative 626.9 hours Start 2024.09.09 @ 15:01:29 End 2024.09.09 @ 15:34:55 Sessions 1 Manual Loads 0 Difficulty Rogue Special Mode None Game No. 680 Rogue 593 Adventurer 87 Explorer 0 Win Type - Total 38 Types 8/0/24/1/1/1/3/0/0 Lore% 94 Gallery% 93 Achievement% 80 Wizard Run 0 Options --------- Layout 0 ASCII 0 Keyboard 1 Movement Numpad Keybinds 0 Fullscreen 2 Font 16/SmallcapsGlow Map View 88x55 Zoom Use 0% Tactical HUD 1 Map Filters NONE Filters NONE Steam 1 RUN: 3dd4c01d-adb1-4c46-8bd7-a5c2299da14e